[Event "Serbian-ch Semifinal 2024"]
[Site "Paracin"]
[Date "2024.02.06"]
[Round "2.1"]
[White "Ivanisevic, Ivan"]
[Black "Ratkovic, Milovan"]
[Result "0-1"]
[ECO "E51"]
[WhiteElo "2517"]
[BlackElo "2396"]
[Annotator "TA"]
[PlyCount "142"]
[EventDate "2024.02.04"]
[EventType "swiss"]
[EventCountry "SRB"]
[SourceTitle "playchess.com"]
[Source "ChessBase"]
[SourceQuality "1"]
[TimeControl "40/5400+30:1800+30"]

{[%evp 36,142,-29,-62,-62,-79,-83,-77,-83,-78,-83,-70,-77,-80,0,-81,-77,-72,-87,-78,-70,-80,-64,-112,-110,-127,-101,-112,-86,-102,-81,-103,-89,-216,-226,-235,-226,-224,-211,-222,-164,-161,-143,-154,-146,-118,-62,-109,-109,-109,-109,-116,-108,-116,-116,-263,-258,-292,-243,-482,-461,-453,-635,-618,-593,-568,-545,-29952,-29951,-29971,-29972,-29970,-29966,-29968,-29968,-29967,-29967,-29965,-29970,-29974,-29975,-29975,-29976,-29976,-29977,-29977,-29977,-29982,-29982,-29981,-29978,-29982,-29983,-29983,-29984,-29984,-29985,-29987,-29988,-29988,-29987,-29987,-29988,-29988,-29989,-29989,-29990,-29990,-29991]} 1. d4 {[%emt 0:00:04]} d5 {[%emt 0:05:43]} 2. c4 {[%emt 0:00:08]} e6 {[%emt 0:00:49]} 3. Nc3 {[%emt 0:00:23]} Bb4 {[%emt 0:00:10]} 4. a3 {[%emt 0:00:18]} Bxc3+ {[%emt 0:00:37]} 5. bxc3 {[%emt 0:00:07]} c6 {[%emt 0:01:16]} 6. e3 {[%emt 0:03:13]} Nf6 {[%emt 0:00:21]} 7. Nf3 {[%emt 0:00:23]} O-O {[%emt 0:00:55]} 8. a4 {[%emt 0:02:23]} Re8 {[%emt 0:05:18]} 9. Ba3 {[%emt 0:01:06]} Nbd7 {[%emt 0:04:03]} 10. cxd5 {[%emt 0:04:06]} exd5 {[%emt 0:06:45]} 11. Bd3 {[%emt 0:00:34]} Nf8 {[%emt 0:06:43]} 12. h3 {[%emt 0:00:38]} Ng6 {[%emt 0:02:19]} 13. O-O {[%emt 0:00:34]} Ne4 {[%emt 0:01:44]} 14. Qc2 {[%emt 0:15:12]} Qf6 {[%emt 0:06:23]} 15. Nh2 {[%emt 0:04:51]} Nh4 {[%emt 0:09:22]} 16. f3 {[%emt 0:12:17]} Ng3 {[%emt 0:01:07]} 17. Rfe1 {[%emt 0:00:53]} Bxh3 {[%emt 0:04:01]} 18. Qf2 {[%emt 0:33:02]} Bf5 {[%emt 0:06:06]} 19. Ng4 {[%emt 0:02:24]} Qg5 {[%emt 0:07:48]} 20. Bd6 {[%emt 0:10:13]} Ne4 {[%emt 0:14:40]} 21. fxe4 {[%emt 0:02:43]} dxe4 {[%emt 0:02:55]} (21... Bxg4 22. Bg3 Ng6 (22... dxe4 $2 23. Bxh4 Qg6 24. Bc4 $18) 23. exd5 $11) 22. Bf4 {[%emt 0:02:01]} Qxg4 {[%emt 0:01:55]} 23. Be2 {[%emt 0:00:18]} Nf3+ $1 {[%emt 0:00:24]} 24. Kf1 {[%emt 0:00:58]} Nd2+ {[%emt 0:01:16]} 25. Kg1 {[%emt 0:00:04]} Qg6 $1 {[%emt 0:00:51]} 26. Red1 {[%emt 0:00:26]} Nf3+ $1 {[%emt 0:00:35]} 27. Kf1 {[%emt 0:00:04]} Ng5 {[%emt 0:01:26]} 28. Rab1 {[%emt 0:00:17]} b6 {[%emt 0:03:53]} 29. a5 {[%emt 0:00:14]} (29. d5 $15) 29... Ne6 $1 $17 {[%emt 0:00:58]} (29... bxa5 30. Qg3 Ne6 31. Qxg6 hxg6 (31... Bxg6 32. Bg3 $15) 32. Bh2 $15) 30. Qh4 {[%emt 0:01:19]} Nxf4 {[%emt 0:00:39]} (30... bxa5 31. Bh5 Qf6 32. Qxf6 gxf6 33. Bh2 $11 (33. Rb7 Bg6 $17)) 31. Qxf4 {[%emt 0:00:06]} Rab8 {[%emt 0:01:32]} 32. Rb2 {[%emt 0:00:47]} h6 {[%emt 0:01:07]} 33. c4 {[%emt 0:00:52]} Bd7 {[%emt 0:01:17]} 34. c5 {[%emt 0:01:00]} (34. Rdb1 $17) 34... b5 $19 {[%emt 0:00:34]} 35. d5 {[%emt 0:00:13]} cxd5 {[%emt 0:00:50]} 36. Rxd5 {[%emt 0:00:05]} Qc6 $1 {[%emt 0:01:07]} 37. Qd6 {[%emt 0:02:13]} Qxd6 {[%emt 0:00:54]} 38. Rxd6 {[%emt 0:00:07]} Be6 {[%emt 0:00:08]} 39. Rxb5 {[%emt 0:01:12]} Rxb5 {[%emt 0:00:53]} 40. Bxb5 {[%emt 0:00:06]} Rb8 {[%emt 0:00:31]} (40... Rc8 $1 $17 {[%cal Rc8c5]} 41. c6 Kf8) 41. Bd7 {[%emt 0:09:24] [#]} (41. Bc6 $15 {was preferrable.}) 41... Bxd7 $1 $17 {[%emt 0:05:23]} 42. Rxd7 {[%emt 0:00:05]} Rc8 {[%emt 0:07:03]} 43. Rxa7 {[%emt 0:05:52]} Rxc5 {[%emt 0:00:06]} 44. a6 {[%emt 0:00:03]} Ra5 {[%emt 0:01:27]} 45. g4 {[%emt 0:06:16] [#]} (45. Re7 $17) 45... Ra2 $1 $19 {[%emt 0:03:56]} 46. Ke1 {[%emt 0:00:38]} g6 {[%emt 0:04:35]} 47. Kd1 $2 {[%emt 0:03:24]} (47. Kf1 {might work better.}) 47... Kg7 $19 {[%emt 0:00:18]} 48. Ke1 {[%emt 0:07:09]} Kf6 {[%emt 0:00:42]} 49. Kf1 {[%emt 0:00:03]} Kg5 {[%emt 0:04:21]} 50. Rxf7 {[%emt 0:00:19]} Rxa6 {[%emt 0:00:27]} (50... Kxg4 51. Rf4+ Kg3 52. Rf6 $17) 51. Ke2 {[%emt 0:03:55]} Ra2+ {[%emt 0:00:24]} 52. Ke1 {[%emt 0:00:01]} Kxg4 {[%emt 0:01:54]} 53. Rf4+ {[%emt 0:00:08]} Kg3 {[%emt 0:00:23]} 54. Rf6 {[%emt 0:00:42]} Rh2 {[%emt 0:01:10]} (54... Ra1+ 55. Ke2 Ra2+ 56. Kf1 $19) 55. Rxg6+ {[%emt 0:01:25]} Kf3 {[%emt 0:00:07]} 56. Ra6 {[%emt 0:00:09]} h5 {[%emt 0:01:11]} 57. Ra7 {[%emt 0:00:27]} h4 {[%emt 0:00:39]} 58. Rf7+ {[%emt 0:00:05]} Kxe3 {[%emt 0:00:17]} 59. Kf1 {[%emt 0:00:04]} h3 {[%emt 0:01:07]} 60. Kg1 {[%emt 0:00:18]} Rg2+ {[%emt 0:00:23]} 61. Kh1 {[%emt 0:00:19]} Rg5 {[%emt 0:01:40]} 62. Kh2 {[%emt 0:00:24]} Kd4 {[%emt 0:01:24]} 63. Ra7 {[%emt 0:01:27]} e3 {[%emt 0:00:28]} 64. Ra4+ {[%emt 0:00:28]} Kd3 {[%emt 0:00:18]} 65. Ra3+ {[%emt 0:00:04]} Ke4 {[%emt 0:00:23]} 66. Ra4+ {[%emt 0:00:04]} Kf3 {[%emt 0:00:22]} 67. Ra3 {[%emt 0:00:46]} Kf2 {[%emt 0:00:16]} 68. Ra7 {[%emt 0:00:19]} e2 {[%emt 0:00:49]} 69. Rf7+ {[%emt 0:00:19]} Ke3 {[%emt 0:00:15]} 70. Re7+ {[%emt 0:00:05]} Kf3 {[%emt 0:00:15]} 71. Re8 {[%emt 0:00:14]} Rg4 {[%emt 0:00:25]} 0-1

[Event "Serbian-ch Semifinal 2024"]
[Site "Paracin"]
[Date "2024.02.06"]
[Round "2.2"]
[White "Tadic, Stefan"]
[Black "Tilicheev, Viacheslav"]
[Result "1/2-1/2"]
[ECO "A99"]
[WhiteElo "2390"]
[BlackElo "2487"]
[Annotator "RC"]
[PlyCount "47"]
[EventDate "2024.02.04"]
[EventType "swiss"]
[EventCountry "SRB"]
[SourceTitle "playchess.com"]
[Source "ChessBase"]
[SourceQuality "1"]
[TimeControl "40/5400+30:1800+30"]

1. c4 {[%emt 0:00:10]} e6 {[%emt 0:03:43]} 2. Nf3 {[%emt 0:00:12]} f5 {[%emt 0:01:32]} 3. g3 {[%emt 0:02:56]} Nf6 {[%emt 0:00:17]} 4. Bg2 {[%emt 0:00:05]} Be7 {[%emt 0:00:06]} 5. O-O {[%emt 0:00:10]} O-O {[%emt 0:00:06]} 6. d4 {[%emt 0:01:45]} d6 {[%emt 0:00:10]} 7. Nc3 {[%emt 0:01:46]} Qe8 {[%emt 0:00:18]} 8. b3 {[%emt 0:12:37]} Nc6 {[%emt 0:05:58]} 9. Bb2 {[%emt 0:15:03]} e5 {[%emt 0:09:12]} 10. dxe5 {[%emt 0:00:33]} dxe5 {[%emt 0:00:59]} 11. Nd5 {[%emt 0:00:23]} Bd8 {[%emt 0:01:20]} 12. Ne1 {[%emt 0:10:13]} Rf7 {[%emt 0:12:58]} 13. Nd3 {[%emt 0:06:08]} e4 {[%emt 0:16:59]} 14. N3f4 {[%emt 0:06:28]} Ne5 {[%emt 0:03:27]} 15. f3 {[%emt 0:01:42]} c6 {[%emt 0:07:56]} 16. Nxf6+ {[%emt 0:02:21]} Bxf6 {[%emt 0:00:09]} 17. Qc2 {[%emt 0:01:14]} exf3 {[%emt 0:11:58]} 18. exf3 {[%emt 0:00:22]} Re7 {[%emt 0:00:26]} 19. Rad1 {[%emt 0:02:23]} Qf7 {[%emt 0:06:42]} 20. Rfe1 {[%emt 0:05:26]} Bd7 {[%emt 0:00:26]} 21. Re2 {[%emt 0:06:43]} Ree8 {[%emt 0:00:35]} 22. Rde1 {[%emt 0:05:43]} Ng6 {[%emt 0:00:49]} 23. Nxg6 {[%emt 0:00:45]} Qxg6 {[%emt 0:03:33]} 24. f4 {[%emt 0:00:04]} 1/2-1/2

[Event "Serbian-ch Semifinal 2024"]
[Site "Paracin"]
[Date "2024.02.06"]
[Round "2.3"]
[White "Perunovic, Miodrag"]
[Black "Nestorovic, Nikola"]
[Result "1/2-1/2"]
[ECO "E14"]
[WhiteElo "2373"]
[BlackElo "2465"]
[Annotator "TA"]
[PlyCount "46"]
[EventDate "2024.02.04"]
[EventType "swiss"]
[EventCountry "SRB"]
[SourceTitle "playchess.com"]
[Source "ChessBase"]
[SourceQuality "1"]
[TimeControl "40/5400+30:1800+30"]

{[%evp 21,46,0,48,28,32,-23,-29,-32,-23,-41,-67,-50,0,0,0,0,0,0,0,0,0,0,0,0,0,0,0]} 1. d4 {[%emt 0:01:25]} Nf6 {[%emt 0:00:09]} 2. Nf3 {[%emt 0:00:03]} e6 {[%emt 0:00:10]} 3. e3 {[%emt 0:00:05]} b6 {[%emt 0:01:36]} 4. Bd3 {[%emt 0:00:08]} Bb7 {[%emt 0:00:06]} 5. O-O {[%emt 0:00:17]} d5 {[%emt 0:00:12]} 6. b3 {[%emt 0:01:08]} Nbd7 {[%emt 0:01:04]} 7. Bb2 {[%emt 0:00:53]} Bd6 {[%emt 0:01:52]} 8. c4 {[%emt 0:01:22]} O-O {[%emt 0:00:30]} 9. Nc3 {[%emt 0:00:36]} a6 {[%emt 0:00:09]} 10. Rc1 {[%emt 0:04:38]} Qe7 {[%emt 0:01:21]} 11. Na4 {[%emt 0:01:01]} Ne4 {[%emt 0:13:50]} (11... dxc4 $11 12. bxc4 Rad8) 12. Qc2 {[%emt 0:04:09]} (12. Ne5 $5) 12... f5 {[%emt 0:02:21]} 13. Ne5 {[%emt 0:14:16]} (13. c5 $14 bxc5 14. Ne5) 13... Bxe5 $11 {[%emt 0:15:52]} 14. dxe5 {[%emt 0:00:02] [#] Black must now prevent cxd5. Black has an edge.} dxc4 {[%emt 0:00:15]} 15. Qxc4 {[%emt 0:10:04]} Nd2 $1 {[%emt 0:22:20][%csl LRc4,LRf1]} 16. Qxc7 {[%emt 0:00:21][%cal Oa4b6] Hoping for Nxb6!} Ra7 {[%emt 0:00:05]} (16... Rab8 $1 $15) 17. Rfd1 {[%emt 0:33:35] The position is equal.} ({But not} 17. Nxb6 $2 Nf3+ 18. Kh1 Qh4 $19) 17... Qg5 {[%emt 0:03:07][%csl Gb7][%cal Rg5g2] [#]} 18. g3 $36 {[%emt 0:00:09][%mdl 2048] White has good play.} (18. Rxd2 $2 Qxg2#) 18... Nf3+ {[%emt 0:04:51]} 19. Kf1 $1 {[%emt 0:00:01]} Nxh2+ {[%emt 0:00:24] Excellent horsemanship.} 20. Ke1 {[%emt 0:00:28]} Nf3+ $1 {[%emt 0:07:37]} 21. Kf1 {[%emt 0:00:05]} Nh2+ {[%emt 0:18:03]} 22. Ke1 {[%emt 0:00:32]} Nf3+ $1 {[%emt 0:01:42]} 23. Kf1 {[%emt 0:00:02]} Nh2+ {[%emt 0:01:49] Weighted Error Value: White=0.11 (very precise) /Black=0.07 (flawless) .  Mistake:       	White=1     	Black=1      OK:         	White=5     	Black=6      Best:        	White=2     	Black=1      Strong:       	White=1     	Black=3} 1/2-1/2

[Event "Serbian-ch Semifinal 2024"]
[Site "Paracin"]
[Date "2024.02.06"]
[Round "2.4"]
[White "Djordjevic, Vuk"]
[Black "Kovacevic, Aleksandar"]
[Result "1/2-1/2"]
[ECO "A46"]
[WhiteElo "2367"]
[BlackElo "2453"]
[Annotator "TA"]
[PlyCount "48"]
[EventDate "2024.02.04"]
[EventType "swiss"]
[EventCountry "SRB"]
[SourceTitle "playchess.com"]
[Source "ChessBase"]
[SourceQuality "1"]
[TimeControl "40/5400+30:1800+30"]

{[%evp 14,48,4,0,13,7,2,0,0,-17,-21,-22,-14,-20,6,0,-13,-14,-14,-4,11,0,90,81,81,56,67,60,106,0,0,0,0,0,0,0,0]} 1. d4 {[%emt 0:04:44]} Nf6 {[%emt 0:00:20]} 2. Bg5 {[%emt 0:00:33]} e6 {[%emt 0:00:18]} 3. e4 {[%emt 0:00:57]} h6 {[%emt 0:00:09]} 4. Bxf6 {[%emt 0:00:09]} Qxf6 {[%emt 0:00:02]} 5. c3 {[%emt 0:00:17]} c5 {[%emt 0:01:37]} 6. Nf3 {[%emt 0:06:36]} cxd4 {[%emt 0:00:59]} 7. cxd4 {[%emt 0:05:01]} Bb4+ {[%emt 0:00:10]} 8. Nc3 {[%emt 0:02:45]} O-O {[%emt 0:00:12]} 9. Rc1 {[%emt 0:05:08]} d6 {[%emt 0:00:31]} 10. a3 {[%emt 0:07:02]} Ba5 {[%emt 0:00:49]} 11. b4 {[%emt 0:05:15]} Bb6 {[%emt 0:01:00]} 12. Bb5 {[%emt 0:08:21]} a6 {[%emt 0:07:29]} 13. Ba4 {[%emt 0:01:08]} Ba7 {[%emt 0:21:11]} 14. Qd3 {[%emt 0:07:27]} Nc6 {[%emt 0:03:00]} 15. Bxc6 {[%emt 0:12:32]} bxc6 {[%emt 0:00:02]} 16. O-O {[%emt 0:01:29]} e5 {[%emt 0:05:17][%cal Re5d4]} 17. Na4 {[%emt 0:09:30]} Bg4 {[%emt 0:16:58]} (17... exd4 $11 18. Rxc6 Bb7) 18. Rxc6 $16 {[%emt 0:02:12] [#] Hoping for dxe5.} Bxf3 {[%emt 0:01:10]} 19. dxe5 {[%emt 0:01:01]} (19. Qxf3 {simplifies} Qxf3 20. gxf3 Bxd4 21. Nb6) 19... Qxe5 {[%emt 0:18:08]} 20. gxf3 {[%emt 0:00:45]} (20. Qxf3 $2 Qb5 21. e5 d5 $19 (21... Qxa4 $2 22. exd6 a5 23. d7 $19)) 20... Bd4 {[%emt 0:01:23] Prevents Nc3.} (20... Rfc8 $1 $14 21. Rfc1 (21. Rxd6 $2 {is the wrong capture.} Bb8 $19) (21. Rxa6 d5 $11) (21. Qxd6 Qb5 $15) 21... Qg5+ 22. Kf1 Re8) 21. f4 {[%emt 0:07:48]} (21. Rxa6 $2 {perishes.} Qg5+ 22. Kh1 Be5 $17 (22... Rxa6 23. Qxa6 Be5 24. Rd1 $11)) (21. Nb6 $16 Bxb6 22. Rxb6) 21... Qxf4 $11 {[%emt 0:01:57] The position is equal.} 22. Qxd4 {[%emt 0:01:09]} Qg4+ {[%emt 0:00:09]} 23. Kh1 {[%emt 0:00:04]} Qf3+ {[%emt 0:00:07]} 24. Kg1 {[%emt 0:00:04]} Qg4+ {[%emt 0:00:11] Weighted Error Value: White=0.15 (very precise) /Black=0.16 (very precise) .  Mistake:       	White=1     	Black=2      Inaccurate:     	---       	Black=1      OK:         	White=6     	Black=4      Best:        	White=1     	Black=4} 1/2-1/2

[Event "Serbian-ch Semifinal 2024"]
[Site "Paracin"]
[Date "2024.02.06"]
[Round "2.5"]
[White "Arsovic, Zoran"]
[Black "Atalik, Suat"]
[Result "1/2-1/2"]
[ECO "A14"]
[WhiteElo "2362"]
[BlackElo "2439"]
[Annotator "TA"]
[PlyCount "107"]
[EventDate "2024.02.04"]
[EventType "swiss"]
[EventCountry "SRB"]
[SourceTitle "playchess.com"]
[Source "ChessBase"]
[SourceQuality "1"]
[TimeControl "40/5400+30:1800+30"]

{[%evp 22,107,0,-54,0,-41,16,-10,0,-7,-3,-15,-6,-8,24,13,23,17,9,16,36,30,33,31,65,65,69,73,137,88,121,127,177,177,181,172,159,179,177,170,142,73,73,21,14,0,106,37,62,0,0,0,0,0,14,0,0,0,0,0,0,0,0,0,0,-47,0,0,0,0,0,0,0,0,15,15,15,15,15,15,15,15,15,15,15,15,21,21]} 1. c4 {[%emt 0:00:13]} e6 {[%emt 0:00:56]} 2. g3 {[%emt 0:01:51]} d5 {[%emt 0:00:23]} 3. Bg2 {[%emt 0:00:22]} Nf6 {[%emt 0:00:27]} 4. Nf3 {[%emt 0:00:25]} Be7 {[%emt 0:00:58]} 5. O-O {[%emt 0:02:18]} O-O {[%emt 0:00:13]} 6. b3 {[%emt 0:02:48]} b6 {[%emt 0:02:12]} 7. Bb2 {[%emt 0:02:21]} Bb7 {[%emt 0:00:21]} 8. e3 {[%emt 0:00:47]} c5 {[%emt 0:00:32]} 9. Nc3 {[%emt 0:00:39] 9.Qe2 is the hot move.} Qc8 {[%emt 0:00:18] A14: English Opening: 1...e6 with b3 by White.} 10. Qe2 {[%emt 0:10:28]} Rd8 {[%emt 0:00:33]} 11. d3 {[%emt 0:03:52]} Nc6 {[%emt 0:00:44]} 12. Ng5 $146 {[%emt 0:08:22]} (12. cxd5 $11 Nxd5 13. Rfd1) ({Predecessor:} 12. Rfe1 Qc7 13. Rac1 dxc4 14. bxc4 Rac8 15. Nb5 Qb8 16. Red1 Qa8 17. a3 Ne8 18. h3 {½-½ Savchenko,B (2550)-Artemiev,V (2701) RUS-ch Blitz 2022 (13)}) 12... h6 {[%emt 0:12:34]} (12... d4 $15 13. Nce4 Nxe4 14. Nxe4 f5) 13. Nh3 {[%emt 0:04:11]} (13. Nf3 $5) 13... dxc4 {[%emt 0:02:07]} (13... d4 $15 14. Nd1 e5) 14. bxc4 {[%emt 0:03:08]} Nb4 {[%emt 0:01:20]} 15. Rad1 {[%emt 0:01:07]} Bxg2 {[%emt 0:00:56]} 16. Kxg2 {[%emt 0:00:04]} Qb7+ {[%emt 0:00:34]} 17. Kg1 {[%emt 0:01:16]} Rd7 {[%emt 0:00:39]} 18. a3 {[%emt 0:02:42]} Nc6 {[%emt 0:01:05]} 19. f4 {[%emt 0:00:27]} Rad8 {[%emt 0:01:59]} 20. f5 {[%emt 0:04:42]} e5 {[%emt 0:03:42]} 21. Nf2 {[%emt 0:01:45]} a6 {[%emt 0:05:16]} 22. a4 {[%emt 0:03:02]} Na5 {[%emt 0:14:27]} 23. e4 {[%emt 0:10:01]} Nc6 {[%emt 0:01:18]} 24. Nd5 {[%emt 0:03:29]} b5 {[%emt 0:00:27]} (24... Kh7 $142) 25. Rb1 {[%emt 0:06:03]} (25. Ng4 $142) 25... b4 {[%emt 0:01:45]} 26. Ng4 {[%emt 0:01:59]} Qb8 {[%emt 0:02:50]} (26... Nxg4 $16 {was called for.} 27. Qxg4 Bf8) 27. Nxe7+ $1 $18 {[%emt 0:08:14]} Rxe7 {[%emt 0:00:23]} 28. Nxf6+ {[%emt 0:00:13]} gxf6 {[%emt 0:00:06]} 29. Bc1 $1 {[%emt 0:00:08]} Kf8 {[%emt 0:00:56]} ({Wrong is} 29... Qd6 $2 30. Bxh6 Kh7 31. Qh5 $18) 30. Bxh6+ {[%emt 0:05:30]} Ke8 {[%emt 0:00:06] [#]} 31. Be3 {[%emt 0:01:07]} ({White should play} 31. Bg7 $1 {[%cal Rg7f6]}) 31... Nd4 {[%emt 0:03:21]} 32. Bxd4 {[%emt 0:01:37]} ({White should try} 32. Qd2 $16) 32... Rxd4 $11 {[%emt 0:00:06]} 33. Rf3 {[%emt 0:01:31]} b3 {[%emt 0:02:48] [#]} (33... Qd8 $11 {remains equal.}) 34. Qb2 {[%emt 0:02:20]} (34. h4 $1 $16) 34... Rb7 $14 {[%emt 0:02:35]} 35. Qc3 {[%emt 0:01:16]} (35. h4 $14) 35... Rb4 {[%emt 0:02:36]} 36. Rf2 {[%emt 0:00:49]} Qd8 {[%emt 0:01:55]} 37. Rf3 {[%emt 0:04:11]} ({Of course not} 37. Rxb3 Rxb3 38. Qxb3 Rxd3 $15) 37... Qb6 {[%emt 0:03:26]} 38. a5 {[%emt 0:02:48]} Qxa5 {[%emt 0:05:56]} 39. Rxb3 {[%emt 0:00:13]} Qa2 {[%emt 0:00:30]} (39... Qa4 $5 40. Ra3 $8 Rb1+ 41. Rf1 Rxf1+ 42. Kxf1 Qd1+ 43. Kf2 Kf8 $11) 40. Rxb4 {[%emt 0:01:14]} cxb4 {[%emt 0:00:08]} 41. Qxb4 {[%emt 0:30:10]} Qe2 {[%emt 0:31:52]} 42. Rf1 {[%emt 0:00:00]} Qe3+ {[%emt 0:00:00]} 43. Kh1 {[%emt 0:00:00]} (43. Rf2 $11) 43... Rxd3 {[%emt 0:00:00]} (43... Qxd3 $15 {should be considered.} 44. Qb1 Qe2) 44. Re1 $11 {[%emt 0:00:00]} Qf2 {[%emt 0:00:00]} 45. Qb8+ {[%emt 0:00:00]} Rd8 {[%emt 0:00:00]} 46. Qb4 {[%emt 0:00:00]} a5 {[%emt 0:00:00]} 47. Qxa5 {[%emt 0:00:00]} Rb8 {[%emt 0:00:00]} (47... Rd2 $5 48. Qa8+ $8 Rd8 49. Qa4+ Kf8 50. Qa3+ Kg7 $11) 48. Qa4+ {[%emt 0:00:06]} Kf8 {[%emt 0:01:33]} 49. Qa3+ $1 {[%emt 0:00:04]} Kg7 {[%emt 0:00:04]} 50. Qe3 {[%emt 0:00:07]} Qa2 {[%emt 0:01:14]} 51. Re2 {[%emt 0:01:47]} Qxc4 {[%emt 0:01:43]} 52. Kg2 {[%emt 0:00:10]} Rb3 {[%emt 0:00:25]} 53. Qf2 {[%emt 0:00:19]} Qd3 {[%emt 0:05:03]} 54. Kh3 {[%emt 0:01:03]} 1/2-1/2

[Event "Serbian-ch Semifinal 2024"]
[Site "Paracin"]
[Date "2024.02.06"]
[Round "2.6"]
[White "Cabarkapa, Novak"]
[Black "Martic, Ivan"]
[Result "1-0"]
[ECO "B51"]
[WhiteElo "2434"]
[BlackElo "2323"]
[Annotator "TA"]
[PlyCount "95"]
[EventDate "2024.02.04"]
[EventType "swiss"]
[EventCountry "SRB"]
[SourceTitle "playchess.com"]
[Source "ChessBase"]
[SourceQuality "1"]
[TimeControl "40/5400+30:1800+30"]

{[%evp 9,95,15,23,28,34,16,25,23,28,27,34,25,32,34,45,14,25,0,0,-7,20,10,34,38,33,36,55,56,60,58,55,36,46,45,42,32,46,37,80,36,121,75,83,68,183,196,229,172,175,172,278,277,359,228,291,285,283,289,352,392,357,276,269,271,445,303,244,242,449,402,459,474,419,386,1008,1008,1026,1025,29975,29972,29972,29972,29982,29983,29986,29987,29991,29992]} 1. e4 {[%emt 0:00:14]} c5 {[%emt 0:00:16]} 2. Nf3 {[%emt 0:00:04]} d6 {[%emt 0:00:12]} 3. Bb5+ {[%emt 0:00:06]} Nd7 {[%emt 0:00:15]} 4. a4 {[%emt 0:00:06][%cal Ba2a4,Ba4a5][%mdl 32]} Ngf6 {[%emt 0:00:41]} 5. Nc3 {[%emt 0:00:05]} g6 {[%emt 0:00:32]} 6. O-O {[%emt 0:00:15]} Bg7 {[%emt 0:00:05]} 7. Re1 {[%emt 0:00:39]} O-O {[%emt 0:02:23]} 8. a5 {[%emt 0:00:18] White has an edge.} a6 {[%emt 0:04:43]} 9. Bf1 {[%emt 0:00:23]} b5 {[%emt 0:01:15]} 10. axb6 {[%emt 0:00:05]} Bb7 {[%emt 0:00:26]} 11. d3 {[%emt 0:00:58]} a5 {[%emt 0:07:14]} 12. Ra2 {[%emt 0:04:28]} (12. d4 {is more complex.} e6 13. Ra3 cxd4 14. Nxd4 Ng4 15. Qxg4 Bxd4 16. Nb5) 12... Nxb6 {[%emt 0:08:16]} 13. Qd2 {[%emt 0:01:47]} a4 {[%emt 0:06:55]} 14. Qf4 {[%emt 0:09:12]} e5 {[%emt 0:05:10]} 15. Qh4 {[%emt 0:01:27]} Nh5 {[%emt 0:02:57]} 16. Qxd8 {[%emt 0:05:02]} Rfxd8 {[%emt 0:02:16]} 17. Nd2 {[%emt 0:17:30]} Bc6 {[%emt 0:26:46]} 18. Nc4 {[%emt 0:02:30]} Nxc4 {[%emt 0:00:30]} 19. dxc4 {[%emt 0:00:05]} Nf4 {[%emt 0:01:30]} 20. Nb5 {[%emt 0:07:32]} f5 {[%emt 0:09:20]} 21. exf5 {[%emt 0:14:14]} gxf5 {[%emt 0:00:07]} 22. Bxf4 {[%emt 0:05:40]} exf4 {[%emt 0:00:12]} 23. Bd3 {[%emt 0:01:52]} Re8 {[%emt 0:06:23]} 24. Rd1 {[%emt 0:09:02] And now Nc7 would win.} Rad8 {[%emt 0:00:49] [#]} (24... Reb8 $14) 25. Rxa4 {[%emt 0:03:27]} (25. f3 $142 $1) 25... Bxb2 $16 {[%emt 0:06:47]} 26. Ra6 {[%emt 0:00:58]} Bxb5 {[%emt 0:00:23]} (26... Be4 $1 $14) 27. cxb5 $18 {[%emt 0:00:06]} d5 {[%emt 0:01:18]} 28. Bxf5 {[%emt 0:04:14]} Re5 {[%emt 0:01:31]} 29. Bg4 $36 {[%emt 0:01:23][%mdl 2048] Keeping Black busy.} h5 {[%emt 0:01:08] [#]} (29... Rb8 {keeps fighting.} 30. Be6+ Kg7) 30. Bf3 $1 {[%emt 0:00:24]} h4 {[%emt 0:02:08]} 31. Rg6+ {[%emt 0:00:47]} Kh8 {[%emt 0:01:41]} 32. Rh6+ {[%emt 0:00:29]} Kg7 {[%emt 0:00:06]} 33. Rxh4 {[%emt 0:00:07]} Rde8 {[%emt 0:01:22]} 34. Rg4+ {[%emt 0:00:39]} (34. Bxd5 $2 Re1+ 35. Rxe1 Rxe1#) 34... Kh6 {[%emt 0:00:28] ( -> ...Re1+)} 35. h4 {[%emt 0:01:05]} (35. Rxd5 $2 Re1#) 35... Bd4 {[%emt 0:00:36]} 36. Kh2 {[%emt 0:05:30]} (36. Rxf4 Re1+ 37. Rxe1 Rxe1+ 38. Kh2 Be5 $11) 36... Re1 $2 {[%emt 0:01:10] [#]} (36... Rb8 {was called for.} 37. Rxf4 Rxb5) 37. Rxd4 $1 {[%emt 0:03:01]} cxd4 {[%emt 0:00:09]} 38. Rxf4 {[%emt 0:00:06][%mdl 4096] Endgame. KRR-KRB} (38. Bxd5 R1e2 39. Rxf4 Rxc2 $11) 38... Rb1 $2 {[%emt 0:00:50]} (38... Rc1 39. Rf6+ (39. Bxd5 Rxc2 40. b6 Rb2 $16) 39... Kg7) 39. Rxd4 {[%emt 0:01:12]} Rxb5 {[%emt 0:00:09]} 40. Bxd5 {[%emt 0:00:13] Bc6 is the strong threat.} ({Less strong is} 40. Rxd5 Rxd5 41. Bxd5 Re2 $18) 40... Rb1 {[%emt 0:00:59]} 41. c4 {[%emt 0:31:02] Rf4 would now be deadly.} Rc1 $2 {[%emt 0:30:19]} (41... Rb2 42. Kg3 Rb4) 42. Rf4 {[%emt 0:01:20]} Re2 {[%emt 0:00:21]} 43. g4 {[%emt 0:00:35][%cal Bg2g4,Bg4g5,Bg5g6][%mdl 32]} Rcc2 {[%emt 0:00:18]} 44. g5+ {[%emt 0:00:12] White mates.} Kg7 {[%emt 0:00:13]} 45. Kg3 {[%emt 0:00:00]} Rc3+ {[%emt 0:00:00]} 46. Kg4 {[%emt 0:00:00]} Rcc2 {[%emt 0:00:00]} 47. Rf7+ {[%emt 0:00:00]} Kh8 {[%emt 0:00:00]} 48. g6 {[%emt 0:00:00] Weighted Error Value: White=0.19 (very precise) /Black=0.48.  Mistake:       	White=1     	Black=6      Inaccurate:     	White=4     	Black=2      OK:         	White=11    	Black=12     Best:        	White=4     	Black=2      Strong:       	White=1     	---} 1-0